fUSD/lending_fUSD_20251017
["ID","MTS","AMOUNT","RATE_DAILY","PERIOD"]
[391637004,1760712673400,-589.07805578,0.00025479,2]
[391637005,1760712673411,-467.16625214,0.00025479,2]
[391637006,1760712673422,-500.0,0.00025479,2]
[391637007,1760712673432,-554.04,0.00025479,2]
[391637008,1760712673442,-500.0,0.00025479,2]
[391637009,1760712673453,-500.0,0.00025479,2]
[391637010,1760712673463,-619.82,0.00025479,2]
[391637011,1760712673473,-540.26825432,0.00025479,2]
[391637012,1760712673483,-950.66,0.00025479,2]
[391637013,1760712673492,-500.0,0.00025479,2]
[391637014,1760712673502,-500.0,0.00025479,2]
[391637015,1760712673512,-151.0,0.00025479,7]
[391637016,1760712673523,-1855.6,0.00025479,2]
[391637017,1760712673533,-151.0,0.00025479,7]
[391637018,1760712673543,-722.3,0.00025479,2]
[391637019,1760712673552,-151.0,0.00025479,7]
[391637020,1760712673562,-500.0,0.00025479,2]
[391637021,1760712673571,-500.0,0.00025479,2]
[391637022,1760712673581,-625.75762143,0.00025479,2]
[391637023,1760712673596,-500.0,0.00025479,2]
[391637024,1760712673605,-1437.69,0.00025479,2]
[391637025,1760712673616,-2212.04,0.00025479,2]
[391637026,1760712673629,-500.0,0.00025479,2]
[391637027,1760712673639,-500.0,0.00025479,2]
[391637028,1760712673649,-500.0,0.00025479,2]
[391637029,1760712673658,-1120.11,0.00025479,2]
[391637030,1760712673669,-500.0,0.00025479,2]
[391637031,1760712673679,-500.0,0.00025479,2]
[391637032,1760712673689,-500.0,0.00025479,2]
[391637033,1760712673700,-174.44775728,0.00025479,2]
[391637034,1760712673710,-542.98377032,0.00025479,2]
[391637035,1760712673720,-500.0,0.00025479,2]
[391637036,1760712673730,-500.0,0.00025479,2]
[391637037,1760712673740,-500.0,0.00025479,2]
[391637038,1760712673749,-854.16,0.00025479,2]
[391637039,1760712673759,-500.0,0.00025479,2]
[391637040,1760712673769,-402.17344832,0.00025479,2]
[391637041,1760712673779,-632.58,0.00025479,2]
[391637042,1760712673789,-500.0,0.00025479,2]
[391637043,1760712673799,-500.0,0.00025479,2]
[391637044,1760712673810,-500.0,0.00025479,2]
[391637045,1760712673820,-505.42917711,0.00025479,2]
[391637046,1760712673830,-500.0,0.00025479,2]
[391637047,1760712673840,-500.0,0.00025479,2]
[391637048,1760712673854,-174.99515412,0.00025479,2]
[391637049,1760712673864,-500.0,0.00025479,2]
[391637050,1760712673875,-270.74548663,0.00025479,2]
[391637051,1760712673885,-500.0,0.00025479,2]
[391637052,1760712673894,-574.99719436,0.00025479,2]
[391637053,1760712673904,-500.0,0.00025479,2]
[391637054,1760712673914,-500.0,0.00025479,2]
[391637055,1760712673924,-500.0,0.00025479,2]
[391637056,1760712673934,-500.0,0.00025479,2]
[391637057,1760712673944,-870.27,0.00025479,2]
[391637058,1760712673954,-604.33676195,0.00025479,2]
[391637059,1760712673964,-546.85,0.00025479,2]
[391637060,1760712673974,-500.0,0.00025479,2]
[391637061,1760712673984,-432.33116701,0.00025479,2]
[391637062,1760712673994,-500.0,0.00025479,2]
[391637063,1760712674003,-500.0,0.00025479,2]
[391637064,1760712674013,-453.82269403,0.00025479,2]
[391637065,1760712674023,-324.33994151,0.00025479,2]
[391637066,1760712674033,-242.0135663,0.00025479,2]
[391637067,1760712674043,-500.0,0.00025479,2]
[391637068,1760712674054,-1000.0,0.00025479,2]
[391637069,1760712674063,-500.0,0.00025479,2]
[391637070,1760712674073,-735.48,0.00025479,2]
[391637071,1760712674083,-500.0,0.00025479,2]
[391637072,1760712674095,-500.0,0.00025479,2]
[391637073,1760712674105,-1633.1,0.00025479,2]
[391637074,1760712674115,-500.0,0.00025479,2]
[391637075,1760712674124,-500.0,0.00025479,2]
[391637076,1760712674135,-500.0,0.00025479,2]
[391637077,1760712674145,-500.0,0.00025479,2]
[391637078,1760712674155,-500.0,0.00025479,2]
[391637079,1760712674165,-500.0,0.00025479,2]
[391637080,1760712674175,-500.0,0.00025479,2]
[391637081,1760712674185,-500.0,0.00025479,2]
[391637082,1760712674195,-500.0,0.00025479,2]
[391637083,1760712674204,-500.0,0.00025479,2]
[391637084,1760712674214,-852.2,0.00025479,2]
[391637085,1760712674223,-665.63,0.00025479,2]
[391637086,1760712674233,-733.45,0.00025479,2]
[391637087,1760712674243,-161.31216276,0.00025479,2]
[391637088,1760712674252,-2292.25,0.00025479,2]
[391637089,1760712674262,-500.0,0.00025479,2]
[391637090,1760712674273,-957.62,0.00025479,2]
[391637091,1760712674283,-500.0,0.00025479,2]
[391637092,1760712674292,-500.0,0.00025479,2]
[391637093,1760712674302,-547.16468902,0.00025479,2]
[391637094,1760712674312,-526.97089818,0.00025479,2]
[391637095,1760712674322,-500.0,0.00025479,2]
[391637096,1760712674332,-500.0,0.00025479,2]
[391637097,1760712674346,-613.12742037,0.00025479,2]
[391637098,1760712674356,-645.32,0.00025479,2]
[391637099,1760712674365,-398.37652161,0.00025479,2]
[391637100,1760712674375,-277.06318539,0.00025479,2]
[391637101,1760712674385,-1164.89,0.00025479,2]
[391637102,1760712674395,-4111.23,0.00025479,2]
[391637103,1760712674405,-300.0,0.00025479,2]
[391637104,1760712674415,-1020.03,0.00025479,2]
[391637105,1760712674425,-2210.79,0.00025479,2]
[391637106,1760712674435,-500.0,0.00025479,2]
[391637107,1760712674444,-500.0,0.00025479,2]
[391637108,1760712674455,-1365.45,0.00025479,2]
[391637109,1760712674464,-500.0,0.00025479,2]
[391637110,1760712674475,-500.0,0.00025479,2]
[391637111,1760712674484,-500.0,0.00025479,2]
[391637112,1760712674494,-482.45420398,0.00025479,2]
[391637113,1760712674504,-1008.76,0.00025479,2]
[391637114,1760712674514,-1563.72,0.00025479,2]
[391637115,1760712674524,-500.0,0.00025479,2]
[391637116,1760712674534,-500.0,0.00025479,2]
[391637117,1760712674544,-1294.16,0.00025479,2]
[391637118,1760712674554,-500.0,0.00025479,2]
[391637119,1760712674563,-616.97,0.00025479,2]
[391637120,1760712674574,-2395.85,0.00025479,2]
[391637121,1760712674584,-1973.58,0.00025479,2]
[391637122,1760712674596,-1000.0,0.00025479,2]
[391637123,1760712674606,-2145.9,0.00025479,2]
[391637124,1760712674617,-369.14030645,0.00025479,2]
[391637125,1760712674630,-897.1,0.00025479,2]
[391637126,1760712674640,-1133.0,0.00025479,2]
[391637127,1760712674650,-500.0,0.00025479,2]
[391637128,1760712674662,-500.0,0.00025479,2]
[391637129,1760712674672,-2887.99,0.00025479,2]
[391637130,1760712674681,-500.0,0.00025479,2]
[391637131,1760712674691,-975.46,0.00025479,2]
[391637132,1760712674704,-500.0,0.00025479,2]
[391637133,1760712674713,-500.0,0.00025479,2]
[391637134,1760712674723,-259.63061079,0.00025479,2]
[391637135,1760712674733,-500.0,0.00025479,2]
[391637136,1760712674742,-1037.54,0.00025479,2]
[391637137,1760712674752,-500.0,0.00025479,2]
[391637138,1760712674761,-500.0,0.00025479,2]
[391637139,1760712674771,-500.0,0.00025479,2]
[391637140,1760712674781,-500.0,0.00025479,2]
[391637141,1760712674790,-500.0,0.00025479,2]
[391637142,1760712674800,-815.66,0.00025479,2]
[391637143,1760712674810,-500.0,0.00025479,2]
[391637144,1760712674819,-500.0,0.00025479,2]
[391637145,1760712674829,-500.0,0.00025479,2]
[391637146,1760712674839,-500.0,0.00025479,2]
[391637147,1760712674851,-500.0,0.00025479,2]
[391637148,1760712674861,-500.0,0.00025479,2]
[391637149,1760712674872,-500.0,0.00025479,2]
[391637150,1760712674882,-2321.61,0.00025479,2]
[391637151,1760712674892,-4259.73,0.00025479,2]
[391637152,1760712674902,-413.91077841,0.00025479,2]
[391637153,1760712674912,-500.0,0.00025479,2]
[391637154,1760712674922,-500.0,0.00025479,2]
[391637155,1760712674932,-1588.12,0.00025479,2]
[391637156,1760712674942,-500.0,0.00025479,2]
[391637157,1760712674952,-342.85897721,0.00025479,2]
[391637158,1760712674962,-2127.98,0.00025479,2]
[391637159,1760712674973,-443.20065875,0.00025479,2]
[391637160,1760712674983,-500.0,0.00025479,2]
[391637161,1760712674992,-500.0,0.00025479,2]
[391637162,1760712675002,-500.0,0.00025479,2]
[391637163,1760712675012,-500.0,0.00025479,2]
[391637164,1760712675022,-1336.95,0.00025479,2]
[391637165,1760712675033,-604.07056359,0.00025479,2]
[391637166,1760712675043,-500.0,0.00025479,2]
[391637167,1760712675053,-500.0,0.00025479,2]
[391637168,1760712675063,-500.0,0.00025479,2]
[391637169,1760712675073,-441.89343001,0.00025479,2]
[391637170,1760712675241,-227.93896001,0.00025479,2]
[391637171,1760712675271,-500.0,0.00025479,2]
[391637172,1760712675280,-228.78907701,0.00025491,2]
[391637173,1760712675290,-860.8332085,0.0002553,2]
[391637174,1760712675299,-5653.2378927,0.0002553,2]
[391637175,1760712675310,-3735.39126522,0.00025653,2]
[391637176,1760712675319,-681.76,0.00025752,2]
[391637177,1760712675329,-586.19,0.00025752,2]
[391637178,1760712675339,-609.49,0.00025752,2]
[391637179,1760712675349,-609.49,0.00025752,2]
[391637180,1760712675358,-609.49,0.00025752,2]
[391637181,1760712675368,-609.49,0.00025752,2]
[391637182,1760712675377,-609.63373329,0.00025752,2]
[391637183,1760712675387,-816.0,0.00025752,2]
[391637184,1760712675397,-816.0,0.00025752,2]
[391637185,1760712675407,-816.0,0.00025752,2]
[391637186,1760712675418,-816.0,0.00025752,2]
[391637187,1760712675427,-816.02982528,0.00025752,2]
[391637188,1760712675437,-500.0,0.00025753,2]
[391637189,1760712675446,-500.0,0.00025753,2]
[391637190,1760712675456,-500.0,0.00025753,2]
[391637191,1760712675465,-500.0,0.00025753,2]
[391637192,1760712675475,-522.4,0.00025753,2]
[391637193,1760712675485,-500.0,0.00025753,2]
[391637194,1760712675495,-869.21,0.00025753,2]
[391637195,1760712675504,-1021.91,0.00025753,2]
[391637196,1760712675513,-500.0,0.00025753,2]
[391637197,1760712675523,-500.0,0.00025753,2]
[391637198,1760712675532,-500.0,0.00025753,2]
[391637199,1760712675542,-537.34,0.00025753,2]
[391637200,1760712675551,-500.0,0.00025753,2]
[391637201,1760712675560,-1474.93,0.00025753,2]
[391637202,1760712675570,-666.77,0.00025753,2]
[391637203,1760712675579,-500.0,0.00025753,2]
[391637204,1760712675589,-500.0,0.00025753,2]
[391637205,1760712675600,-500.0,0.00025753,2]
[391637206,1760712675610,-500.0,0.00025753,2]
[391637207,1760712675621,-934.67,0.00025753,2]
[391637208,1760712675631,-1074.19,0.00025753,2]
[391637209,1760712675640,-500.0,0.00025753,2]
[391637210,1760712675650,-2000.0,0.00025753,7]
[391637211,1760712675663,-500.0,0.00025753,2]
[391637212,1760712675672,-500.0,0.00025753,2]
[391637213,1760712675682,-500.0,0.00025753,2]
[391637214,1760712675691,-330.89925865,0.00025753,2]
[391637215,1760712675702,-500.0,0.00025753,2]
[391637216,1760712675711,-500.0,0.00025753,2]
[391637217,1760712675721,-500.0,0.00025753,2]
[391637218,1760712675730,-1458.22,0.00025753,2]
[391637219,1760712675739,-500.0,0.00025753,2]
[391637220,1760712675748,-500.0,0.00025753,2]
[391637221,1760712675758,-505.59,0.00025753,2]
[391637222,1760712675767,-151.0,0.00025753,7]
[391637223,1760712675776,-151.0,0.00025753,7]
[391637224,1760712675786,-151.0,0.00025753,7]
[391637225,1760712675796,-151.0,0.00025753,7]
[391637226,1760712675805,-151.0,0.00025753,7]
[391637227,1760712675815,-151.0,0.00025753,7]
[391637228,1760712675825,-222.40250404,0.00025753,7]
[391637229,1760712675835,-500.0,0.00025753,2]
[391637230,1760712675844,-352.42848825,0.00025753,2]
[391637231,1760712675857,-600.10796614,0.00025753,2]
[391637232,1760712675867,-837.59,0.00025753,2]
[391637233,1760712675876,-500.0,0.00025753,2]
[391637234,1760712675886,-151.0,0.00025753,7]
[391637235,1760712675897,-259.91560559,0.00025753,2]
[391637236,1760712675906,-151.0,0.00025753,7]
[391637237,1760712675916,-151.0,0.00025753,7]
[391637238,1760712675926,-335.375095,0.00025753,7]
[391637239,1760712675936,-151.0,0.00025753,7]
[391637240,1760712675946,-2355.17,0.00025753,2]
[391637241,1760712675955,-335.375095,0.00025753,7]
[391637242,1760712675964,-335.375095,0.00025753,7]
[391637243,1760712675974,-335.375095,0.00025753,7]
[391637244,1760712675983,-500.0,0.00025753,2]
[391637245,1760712675993,-513.36,0.00025753,2]
[391637246,1760712676003,-500.0,0.00025753,2]
[391637247,1760712676012,-500.0,0.00025753,2]
[391637248,1760712676022,-500.0,0.00025753,2]
[391637249,1760712676032,-500.0,0.00025753,2]
[391637250,1760712676042,-500.0,0.00025753,2]
[391637251,1760712676051,-500.0,0.00025753,2]
[391637252,1760712676061,-1192.44,0.00025753,2]
[391637253,1760712676071,-654.23,0.00025753,2]
[391637254,1760712676080,-500.0,0.00025753,2]
[391637255,1760712676090,-500.0,0.00025753,2]
[391637256,1760712676103,-2969.48,0.00025753,2]
[391637257,1760712676113,-500.0,0.00025753,2]
[391637258,1760712676123,-500.0,0.00025753,2]
[391637259,1760712676134,-500.17,0.00025753,2]
[391637260,1760712676144,-1595.99,0.00025753,2]
[391637261,1760712676155,-500.0,0.00025753,2]
[391637262,1760712676165,-2220.63,0.00025753,2]
[391637263,1760712676176,-500.0,0.00025753,2]
[391637264,1760712676187,-255.58486627,0.00025753,2]
[391637265,1760712676198,-500.0,0.00025753,2]
[391637266,1760712676209,-554.04,0.00025753,2]
[391637267,1760712676219,-500.0,0.00025753,2]
[391637268,1760712676230,-619.82,0.00025753,2]
[391637269,1760712676240,-950.66,0.00025753,2]
[391637270,1760712676250,-500.0,0.00025753,2]
[391637271,1760712676260,-1855.6,0.00025753,2]
[391637272,1760712676271,-722.3,0.00025753,2]
[391637273,1760712676280,-500.0,0.00025753,2]
[391637274,1760712676290,-500.0,0.00025753,2]
[391637275,1760712676300,-500.0,0.00025753,2]
[391637276,1760712676309,-1437.69,0.00025753,2]
[391637277,1760712676319,-2212.04,0.00025753,2]
[391637278,1760712676328,-500.0,0.00025753,2]
[391637279,1760712676338,-500.0,0.00025753,2]
[391637280,1760712676351,-500.0,0.00025753,2]
[391637281,1760712676362,-1120.11,0.00025753,2]
[391637282,1760712676372,-500.0,0.00025753,2]
[391637283,1760712676382,-500.0,0.00025753,2]
[391637284,1760712676392,-500.0,0.00025753,2]
[391637285,1760712676402,-500.0,0.00025753,2]
[391637286,1760712676411,-500.0,0.00025753,2]
[391637287,1760712676421,-854.16,0.00025753,2]
[391637288,1760712676431,-360.86650252,0.00025753,2]
[391637289,1760712676440,-632.58,0.00025753,2]
[391637290,1760712676451,-500.0,0.00025753,2]
[391637291,1760712676460,-500.0,0.00025753,2]
[391637292,1760712676470,-500.0,0.00025753,2]
[391637293,1760712676480,-500.0,0.00025753,2]
[391637294,1760712676490,-500.0,0.00025753,2]
[391637295,1760712676500,-500.0,0.00025753,2]
[391637296,1760712676510,-500.0,0.00025753,2]
[391637297,1760712676520,-870.27,0.00025753,2]
[391637298,1760712676530,-150.00515091,0.00025753,2]
[391637299,1760712676540,-500.0,0.00025753,2]
[391637300,1760712676552,-500.0,0.00025753,2]
[391637301,1760712676562,-1000.0,0.00025753,2]
[391637302,1760712676572,-735.48,0.00025753,2]
[391637303,1760712676583,-500.0,0.00025753,2]
[391637304,1760712676592,-500.0,0.00025753,2]
[391637305,1760712676606,-1633.1,0.00025753,2]
[391637306,1760712676617,-500.0,0.00025753,2]
[391637307,1760712676631,-500.0,0.00025753,2]
[391637308,1760712676642,-500.0,0.00025753,2]
[391637309,1760712676652,-500.0,0.00025753,2]
[391637310,1760712676663,-500.0,0.00025753,2]
[391637311,1760712676673,-500.0,0.00025753,2]
[391637312,1760712676683,-500.0,0.00025753,2]
[391637313,1760712676694,-500.0,0.00025753,2]
[391637314,1760712676703,-852.2,0.00025753,2]
[391637315,1760712676713,-665.63,0.00025753,2]
[391637316,1760712676723,-733.45,0.00025753,2]
[391637317,1760712676733,-2292.25,0.00025753,2]
[391637318,1760712676743,-500.0,0.00025753,2]
[391637319,1760712676752,-957.62,0.00025753,2]
[391637320,1760712676762,-500.0,0.00025753,2]
[391637321,1760712676771,-286.8235369,0.00025753,2]
[391637322,1760712676781,-500.0,0.00025753,2]
[391637323,1760712676791,-645.32,0.00025753,2]
[391637324,1760712676801,-1164.89,0.00025753,2]
[391637325,1760712676811,-4111.23,0.00025753,2]
[391637326,1760712676821,-167.22380337,0.00025753,2]
[391637327,1760712676830,-1020.03,0.00025753,2]
[391637328,1760712676841,-2210.79,0.00025753,2]
[391637329,1760712676855,-500.0,0.00025753,2]
[391637330,1760712676864,-500.0,0.00025753,2]
[391637331,1760712676875,-1365.45,0.00025753,2]
[391637332,1760712676885,-256.74114154,0.00025753,2]
[391637333,1760712676896,-500.0,0.00025753,2]
[391637334,1760712676906,-500.0,0.00025753,2]
[391637335,1760712676916,-1008.76,0.00025753,2]
[391637336,1760712676927,-1563.72,0.00025753,2]
[391637337,1760712676937,-500.0,0.00025753,2]
[391637338,1760712676947,-500.0,0.00025753,2]
[391637339,1760712676956,-1294.16,0.00025753,2]
[391637340,1760712676966,-500.0,0.00025753,2]
[391637341,1760712676975,-616.97,0.00025753,2]
[391637342,1760712676985,-2395.85,0.00025753,2]
[391637343,1760712676994,-1973.58,0.00025753,2]
[391637344,1760712677004,-1000.0,0.00025753,2]
[391637345,1760712677014,-2145.9,0.00025753,2]
[391637346,1760712677024,-897.1,0.00025753,2]
[391637347,1760712677035,-1133.0,0.00025753,2]
[391637348,1760712677045,-500.0,0.00025753,2]
[391637349,1760712677055,-500.0,0.00025753,2]
[391637350,1760712677065,-2887.99,0.00025753,2]
[391637351,1760712677074,-500.0,0.00025753,2]
[391637352,1760712677083,-975.46,0.00025753,2]
[391637353,1760712677093,-500.0,0.00025753,2]
[391637354,1760712677107,-500.0,0.00025753,2]
[391637355,1760712677118,-500.0,0.00025753,2]
[391637356,1760712677128,-1037.54,0.00025753,2]
[391637357,1760712677138,-500.0,0.00025753,2]
[391637358,1760712677148,-637.24,0.00025753,2]
[391637359,1760712677158,-500.0,0.00025753,2]
[391637360,1760712677168,-500.0,0.00025753,2]
[391637361,1760712677178,-815.66,0.00025753,2]
[391637362,1760712677188,-500.0,0.00025753,2]
[391637363,1760712677198,-500.0,0.00025753,2]
[391637364,1760712677208,-500.0,0.00025753,2]
[391637365,1760712677218,-500.0,0.00025753,2]
[391637366,1760712677228,-500.0,0.00025753,2]
[391637367,1760712677238,-500.0,0.00025753,2]
[391637368,1760712677248,-500.0,0.00025753,2]
[391637369,1760712677258,-2321.61,0.00025753,2]
[391637370,1760712677267,-4259.73,0.00025753,2]
[391637371,1760712677277,-500.0,0.00025753,2]
[391637372,1760712677286,-500.0,0.00025753,2]
[391637373,1760712677296,-1588.12,0.00025753,2]
[391637374,1760712677306,-358.61393109,0.00025753,2]
[391637375,1760712677316,-2127.98,0.00025753,2]
[391637376,1760712677326,-500.0,0.00025753,2]
[391637377,1760712677336,-500.0,0.00025753,2]
[391637378,1760712677348,-1336.95,0.00025753,2]
[391637379,1760712677364,-500.0,0.00025753,2]
[391637380,1760712677373,-500.0,0.00025753,2]
[391637381,1760712677383,-418.2052984,0.00025753,2]
[391637382,1760712677393,-500.0,0.00025753,2]
[391637383,1760712677403,-250.22,0.000258,2]
[391637384,1760712677413,-4135.67720157,0.000259,2]
[391637385,1760712677423,-200.0,0.000259,2]
[391637386,1760712677433,-150.9064378,0.00025917,2]
[391637387,1760712677443,-150.0,0.00025917,2]
[391637388,1760712677453,-150.0,0.00025917,2]
[391637389,1760712677463,-150.0,0.00025917,2]
[391637390,1760712677473,-150.0,0.00025917,2]
[391637391,1760712677484,-150.0,0.00025917,2]
[391637392,1760712677493,-150.0,0.00025917,2]
[391637393,1760712677502,-150.0,0.00025917,2]
[391637394,1760712677513,-150.0,0.00025917,2]
[391637395,1760712677523,-150.0,0.00025917,2]
[391637396,1760712677532,-200.0,0.00025917,2]
[391637397,1760712677543,-500.0,0.00025917,2]
[391637398,1760712677553,-200.0,0.00025917,2]
[391637399,1760712677562,-151.67894546,0.00025917,2]
[391637400,1760712677572,-200.0,0.00025917,2]
[391637401,1760712677582,-200.0,0.00025917,2]
[391637402,1760712677591,-150.0,0.00025917,2]
[391637403,1760712677605,-150.0,0.00025917,2]
[391637404,1760712677616,-4456.45756713,0.00025927,2]
[391637405,1760712677631,-150.0,0.00025972,2]
[391637406,1760712677641,-150.0,0.00025972,2]
[391637407,1760712677707,-150.0,0.00025972,2]
[391637408,1760712677718,-150.0,0.00025972,2]
[391637409,1760712677728,-150.0,0.00025972,2]
[391637410,1760712677737,-150.0,0.00025972,2]
[391637411,1760712677746,-150.0,0.00025972,2]
[391637412,1760712677756,-150.0,0.00025972,2]
[391637413,1760712677766,-500.0,0.00025972,2]
[391637414,1760712677775,-150.0,0.00025972,2]
[391637415,1760712677784,-8957.08,0.00026,7]
[391637416,1760712677794,-151.0,0.00026,7]
[391637417,1760712677803,-151.0,0.00026,7]
[391637418,1760712677813,-152.033785,0.00026,7]
[391637419,1760712677822,-151.0,0.00026,7]
[391637420,1760712677831,-220.19379018,0.00026017,2]
[391637421,1760712677840,-666.0,0.00026026,2]
[391637422,1760712677853,-150.0,0.00026027,2]
[391637423,1760712677867,-150.0,0.00026027,2]
[391637424,1760712677877,-150.0,0.00026027,2]
[391637425,1760712677886,-150.0,0.00026027,2]
[391637426,1760712677895,-150.0,0.00026027,2]
[391637427,1760712677905,-150.0,0.00026027,2]
[391637428,1760712677914,-200.0,0.00026027,2]
[391637429,1760712677924,-150.0,0.00026027,2]
[391637430,1760712677933,-500.0,0.00026027,2]
[391637431,1760712677942,-150.0,0.00026027,2]
[391637432,1760712677951,-500.0,0.00026027,2]
[391637433,1760712677961,-500.0,0.00026027,2]
[391637434,1760712677970,-522.4,0.00026027,2]
[391637435,1760712677979,-500.0,0.00026027,2]
[391637436,1760712677989,-869.21,0.00026027,2]
[391637437,1760712677998,-1021.91,0.00026027,2]
[391637438,1760712678007,-500.0,0.00026027,2]
[391637439,1760712678016,-500.0,0.00026027,2]
[391637440,1760712678026,-500.0,0.00026027,2]
[391637441,1760712678035,-537.34,0.00026027,2]
[391637442,1760712678044,-280.13518641,0.00026027,2]
[391637443,1760712678053,-1474.93,0.00026027,2]
[391637444,1760712678063,-666.77,0.00026027,2]
[391637445,1760712678072,-500.0,0.00026027,2]
[391637446,1760712678081,-500.0,0.00026027,2]
[391637447,1760712678090,-500.0,0.00026027,2]
[391637448,1760712678102,-500.0,0.00026027,2]
[391637449,1760712678111,-934.67,0.00026027,2]
[391637450,1760712678120,-1074.19,0.00026027,2]
[391637451,1760712678129,-500.0,0.00026027,2]
[391637452,1760712678139,-2000.0,0.00026027,7]
[391637453,1760712678149,-500.0,0.00026027,2]
[391637454,1760712678159,-500.0,0.00026027,2]
[391637455,1760712678169,-500.0,0.00026027,2]
[391637456,1760712678178,-500.0,0.00026027,2]
[391637457,1760712678188,-500.0,0.00026027,2]
[391637458,1760712678197,-500.0,0.00026027,2]
[391637459,1760712678207,-1458.22,0.00026027,2]
[391637460,1760712678216,-500.0,0.00026027,2]
[391637461,1760712678225,-500.0,0.00026027,2]
[391637462,1760712678234,-151.0,0.00026027,7]
[391637463,1760712678243,-151.0,0.00026027,7]
[391637464,1760712678252,-151.0,0.00026027,7]
[391637465,1760712678261,-505.59,0.00026027,2]
[391637466,1760712678270,-244.64456573,0.00026027,2]
[391637467,1760712678280,-837.59,0.00026027,2]
[391637468,1760712678289,-500.0,0.00026027,2]
[391637469,1760712678298,-2355.17,0.00026027,2]
[391637470,1760712678308,-500.0,0.00026027,2]
[391637471,1760712678317,-513.36,0.00026027,2]
[391637472,1760712678330,-500.0,0.00026027,2]
[391637473,1760712678340,-500.0,0.00026027,2]
[391637474,1760712678352,-500.0,0.00026027,2]
[391637475,1760712678361,-500.0,0.00026027,2]
[391637476,1760712678371,-500.0,0.00026027,2]
[391637477,1760712678380,-500.0,0.00026027,2]
[391637478,1760712678389,-1192.44,0.00026027,2]
[391637479,1760712678399,-654.23,0.00026027,2]
[391637480,1760712678408,-500.0,0.00026027,2]
[391637481,1760712678418,-500.0,0.00026027,2]
[391637482,1760712678427,-2969.48,0.00026027,2]
[391637483,1760712678436,-500.0,0.00026027,2]
[391637484,1760712678445,-500.0,0.00026027,2]
[391637485,1760712678454,-500.17,0.00026027,2]
[391637486,1760712678463,-1595.99,0.00026027,2]
[391637487,1760712678473,-500.0,0.00026027,2]
[391637488,1760712678483,-2220.63,0.00026027,2]
[391637489,1760712678492,-500.0,0.00026027,2]
[391637490,1760712678502,-500.0,0.00026027,2]
[391637491,1760712678512,-554.04,0.00026027,2]
[391637492,1760712678521,-500.0,0.00026027,2]
[391637493,1760712678530,-619.82,0.00026027,2]
[391637494,1760712678540,-950.66,0.00026027,2]
[391637495,1760712678550,-500.0,0.00026027,2]
[391637496,1760712678559,-1855.6,0.00026027,2]
[391637497,1760712678568,-722.3,0.00026027,2]
[391637498,1760712678577,-500.0,0.00026027,2]
[391637499,1760712678587,-500.0,0.00026027,2]
[391637500,1760712678599,-500.0,0.00026027,2]
[391637501,1760712678609,-1437.69,0.00026027,2]
[391637502,1760712678623,-2212.04,0.00026027,2]
[391637503,1760712678634,-363.93440808,0.00026027,2]